Cogmind - Beta 13 @@@ ROGUE MODE // 2024.04.03 @ 19:56:13 Player: GingerCyclops Result: Destroyed by G-34 Mercenary with Small Laser Performance ------------- Evolutions (1) 500 Regions Visited (2) 400 Robots Destroyed (23) 115 Value Destroyed (616) 616 Prototype IDs (2) 40 Alien Tech Used (0) 0 Bonus (19) 19 TOTAL SCORE: 1690 Bonus ------- High Alert Combat Kills 19 Cogmind --------- Core Integrity 0/400 Matter 70/300 Energy 100/100 System Corruption 1% Temperature Cool (6) Movement Core (200) Ox3 Location -9/Materials Parts ------- > --- POWER (2) -------- (None) > --- PROPULSION (2) --- (None) > --- UTILITY (3) ------ Medium Storage Unit Utility Shielding > --- WEAPON (2) ------- (None) > --- INVENTORY (10) --- Improved Heat Sink Large Battery (200) Large Battery (200) Large Battery (200) Large Battery (200) High-capacity Matter Pod (0) Light Cannon Peak State ------------ > --- POWER ------------ Ion Engine > --- PROPULSION ------- Aluminum Leg Improved Aluminum Leg > --- UTILITY ---------- Medium Storage Unit Utility Shielding > --- WEAPON ----------- Improved Assault Rifle Improved Assault Rifle > --- INVENTORY -------- Improved Heat Sink Large Battery Large Battery Large Battery Large Battery High-capacity Matter Pod Light Cannon [Rating: 12] Favorites ----------- Power Ion Engine Engine Ion Engine Propulsion Aluminum Leg Leg Aluminum Leg Utility Medium Storage Unit Storage Medium Storage Unit Protection Utility Shielding Weapon Grenade Launcher Energy Cannon Beam Cannon Ballistic Gun Improved Assault Rifle Launcher Grenade Launcher Build | -11 -10 -9 ------- Run | Yrd Mat Mat Slots Evolved 2 | . . 2 Power 1 | . . 1 Propulsion . | . . . Utility 1 | . . 1 Weapon . | . . . Parts Attached 17 | 5 7 5 Power 2 | 1 1 . Engine 2 | 1 1 . Core . | . . . Reactor . | . . . Propulsion 7 | 2 2 3 Treads . | . . . Leg 7 | 2 2 3 Wheel . | . . . Hover . | . . . Flight . | . . . Utility 2 | . 2 . Device . | . . . Storage 1 | . 1 . Processor . | . . . Hackware . | . . . Protection 1 | . 1 . Artifact . | . . . Weapon 6 | 2 2 2 Energy Gun . | . . . Energy Cannon 1 | . 1 . Ballistic Gun 4 | 2 . 2 Ballistic Cannon . | . . . Launcher 1 | . 1 . Special Weapon . | . . . Impact Weapon . | . . . Slashing Weapon . | . . . Piercing Weapon . | . . . Special Melee Weapon . | . . . Unidentified Prototypes 2 | . . 2 Parts Lost 11 | . 1 10 Power 3 | . 1 2 Propulsion 4 | . . 4 Utility . | . . . Weapon 4 | . . 4 Highest Loss Streak 4 | . 1 4 To Critical Strikes . | . . . Average Slot Usage (%) 75 | . 84 68 Engine 10 | . 11 9 Leg 21 | . 28 16 Storage 10 | . 9 11 Protection 9 | . 7 11 Energy Cannon 7 | . 9 4 Ballistic Gun 7 | . 8 7 Launcher 9 | . 9 8 Naked Turns . | . . . Heaviest Build 22 | 5 22 22 Greatest Support 23 | 20 20 23 Greatest Overweight (x) 7 | . 1 7 Average Overweight (x) . | . . 1 Largest Inventory Capacity 10 | 5 10 10 Average Capacity 8 | 5 8 10 Most Carried 10 | 3 10 10 Average Carried 6 | . 4 8 Final Capacity 10 | 5 10 10 Final Carried 10 | . 10 7 Class Distribution -------------------- 100% | Mutant Dominant Class ---------------- Mutant | -10/Materials Mutant | -9/Materials Resources | -11 -10 -9 ----------- Run | Yrd Mat Mat Matter Collected 394 | 256 79 59 Remotely . | . . . Salvage Created 420 | 35 131 254 Parts 37 | 2 20 15 Haulers Intercepted 1 | . . 1 Recyclers Shooed 2 | . 1 1 Parts Field Recycled . | . . . Retrieved Matter . | . . . Parts Self-Destructed . | . . . Prevented . | . . . Kills | -11 -10 -9 ------- Run | Yrd Mat Mat Combat Hostiles Destroyed 18 | 1 9 8 Guns 4 | 1 2 1 Cannons 3 | . 3 . AOE 10 | . 4 6 Classes Destroyed 6 | 1 2 3 Worker 2 | . 1 1 Builder 1 | . . 1 Hauler 1 | . . 1 Watcher 1 | . . 1 Swarmer 5 | . 5 . Grunt 13 | 1 4 8 Best Kill Streak 5 | 1 5 4 Combat Bots Only 5 | 1 5 3 Max Kills in Single Turn 2 | 1 2 2 Gunslinging . | . . . Exploded 1 | . 1 1 Melee . | . . . Uniques/NPCs Destroyed . | . . . Combat | -11 -10 -9 -------- Run | Yrd Mat Mat Hostile Shots Fired 152 | 3 46 103 Missed 41 | 1 13 27 Damage Taken 1628 | 21 400 1207 Core 491 | . 84 407 Absorbed by Shields . | . . . Redirected to Shielding 21 | . 5 16 Core Remaining (%) 83 | 100 66 . Volleys Fired 51 | 3 20 28 Largest 2 | 2 2 2 Hottest 90 | 40 90 90 Shots Fired 92 | 6 39 47 Gun 47 | 6 18 23 Cannon 21 | . 11 10 Launcher 24 | . 10 14 Special . | . . . Kinetic 47 | 6 18 23 Thermal 21 | . 11 10 Explosive 24 | . 10 14 Electromagnetic . | . . . Robot Hit Streak 9 | 2 9 8 Robot Miss Streak 4 | 2 4 4 Penetration Max . | . . . Secondary Targets 1 | . 1 . Max Gunslinging Chain 1 | . 1 . Shots Hit Robots 51 | 4 21 26 Core Hits 39 | 2 18 19 Critical Kills 1 | . . 1 Critical Parts Destroyed . | . . . Critical Strikes 1 | . . 1 Meltdown 1 | . . 1 Melee Attacks . | . . . Impact . | . . . Slashing . | . . . Piercing . | . . . Sneak Attacks . | . . . Combat Hostiles . | . . . Follow-up Attacks . | . . . Damage Inflicted 1995 | 33 680 1282 Guns 321 | 33 64 224 Cannons 211 | . 140 71 Explosions 1449 | . 476 973 Melee . | . . . Ramming 14 | . . 14 Kinetic 321 | 33 64 224 Thermal 351 | . 140 211 Explosive 1309 | . 476 833 Electromagnetic . | . . . Impact . | . . . Slashing . | . . . Piercing . | . . . Highest Corruption 1 | . . 1 Average Corruption 1 | . . 1 Corruption Purged . | . . . Corruption Blocked . | . . . Overload Shots . | . . . Overflow Damage 22 | . 22 . Projectiles . | . . . Explosions 22 | . 22 . Melee . | . . . Knockbacks . | . . . Impact . | . . . Kinetic . | . . . Secondary . | . . . Self-Inflicted Damage 293 | . 42 251 Shots 10 | . 2 8 Rammed 1 | . . 1 Targets Rammed 11 | . . 11 Kicked 10 | . . 10 Crushed . | . . . Highest Temperature 123 | 6 120 123 Average Temperature 41 | 6 55 31 Received Heat Transfer 612 | 12 81 519 Siege Activations . | . . . Robots Corrupted . | . . . Combat Hostiles . | . . . Parts Fried . | . . . Impact Corruptions . | . . . Robots Melted 1 | . . 1 Combat Hostiles 1 | . . 1 Parts Melted . | . . . Heat Transferred 544 | . 296 248 Parts Sabotaged . | . . . Parts Stolen . | . . . Parts Stripped . | . . . Power Chain Reactions . | . . . Alert | -11 -10 -9 ------- Run | Yrd Mat Mat Peak Influence 502 | 20 309 502 Initial 130 | . 13 130 Average 201 | 3 137 290 Maximum Alert Level 2 | . 1 2 Low Security (%) 54 | 100 59 41 Level 1 36 | . 40 40 Level 2 8 | . . 17 Level 3 . | . . . Level 4 . | . . . Level 5 . | . . . High Security . | . . . Max Security . | . . . Squads Dispatched 3 | . 1 2 Investigation 2 | . 1 1 Extermination . | . . . Reinforcement 1 | . . 1 Assault . | . . . Garrison . | . . . Intercept . | . . . Searches Triggered . | . . . Construction Impeded . | . . . Haulers Reinforced . | . . . Active Scanning Responses . | . . . Cargo Convoy Interrupts . | . . . Stealth | -11 -10 -9 --------- Run | Yrd Mat Mat Distress Signals 2 | . 1 1 Communications Jammed . | . . . Distress Signals . | . . . Times Spotted 26 | 1 12 13 Peak Tracking Total 5 | 1 3 5 Tactical Retreats 1 | . . 1 Traps | -11 -10 -9 ------- Run | Yrd Mat Mat Traps Triggered 3 | . 2 1 Indirectly . | . . . Trap Hack Attempts . | . . . Triggered . | . . . Disarmed . | . . . Reprogrammed . | . . . Reused . | . . . Traps Extracted . | . . . Installed . | . . . Triggered . | . . . Machines | -11 -10 -9 ---------- Run | Yrd Mat Mat Machines Disabled 6 | . 1 5 Max in Single Turn 3 | . 1 3 Machines Repaired . | . . . Machines Dismantled . | . . . Machines Sabotaged . | . . . Overloaded Fab Kills . | . . . Hacking | -11 -10 -9 --------- Run | Yrd Mat Mat Machines Accessed 3 | . 1 2 Terminals 3 | . 1 2 Fabricators . | . . . Repair Stations . | . . . Recycling Units . | . . . Scanalyzers . | . . . Garrison Access . | . . . Total Hacks 9 | . 3 6 Successful 5 | . 1 4 Failed 4 | . 2 2 Catastrophic . | . . . Database Lockouts . | . . . Manual . | . . . Terminals 9 | . 3 6 Fabricators . | . . . Repair Stations . | . . . Recycling Units . | . . . Scanalyzers . | . . . Garrison Access . | . . . Terminal Hacks 5 | . 1 4 Record 3 | . 1 2 Transport Status 1 | . . 1 Zone Layout 1 | . . 1 Fabricator Hacks . | . . . Repair Station Hacks . | . . . Recycling Unit Hacks . | . . . Scanalyzer . | . . . Garrison Access Hacks . | . . . Unauthorized Hacks . | . . . Terminals . | . . . Fabricators . | . . . Repair Stations . | . . . Recycling Units . | . . . Scanalyzers . | . . . Garrison Access . | . . . Data Cores Recovered . | . . . Used . | . . . Hacking Detections 2 | . 1 1 Full Trace Events 2 | . 1 1 Feedback Events . | . . . Feedback Blocked . | . . . Robot Schematics Acquired . | . . . Robots Built . | . . . Authchips . | . . . Time . | . . . Total Robot Build Rating . | . . . Part Schematics Acquired . | . . . Parts Built . | . . . Authchips . | . . . Time . | . . . Total Part Build Rating . | . . . Parts Repaired . | . . . Time . | . . . Parts Recycled . | . . . Recycled Matter . | . . . Retrieved Matter . | . . . Retrieved Components . | . . . Parts Scanalyzed . | . . . Part Schematics Acquired . | . . . Parts Damaged . | . . . Bothacking | -11 -10 -9 ------------ Run | Yrd Mat Mat Used RIF Installer . | . . . Robots Hacked . | . . . Non-combat . | . . . Combat . | . . . Robot Hacks Applied . | . . . Relay Couplers Released . | . . . Fabnet Peak Effective % . | . . . Robots Rewired . | . . . Allies Hacked . | . . . Hacks Repelled . | . . . Allies | -11 -10 -9 -------- Run | Yrd Mat Mat Total Allies . | . . . Largest Group . | . . . Highest-Rated Group . | . . . Highest-Rated Ally . | . . . Total Orders . | . . . Ally Attacks . | . . . Total Damage . | . . . Kills . | . . . Allies Corrupted . | . . . Allies Melted . | . . . Intel | -11 -10 -9 ------- Run | Yrd Mat Mat Robot Analysis Total . | . . . Derelict Logs Recovered . | . . . Drone Launches . | . . . Drone Recoveries . | . . . Exploration | -11 -10 -9 ------------- Run | Yrd Mat Mat Turns Passed 850 | 82 339 429 Spaces Moved 434 | 68 195 171 Core 40 | 24 . 16 Treads . | . . . Legs 394 | 44 195 155 Wheels . | . . . Hover . | . . . Flight . | . . . Fastest Speed 50 | 50 120 120 Average Speed 147 | 95 133 184 Slowest Speed 400 | 120 190 400 Overloaded Moves . | . . . Propulsion Burnouts . | . . . Robots Hopped . | . . . Cave-ins Triggered . | . . . Exploration Rate (%) 20 | 8 36 16 Regions Visited 2 Branch Regions . Pre-discovered Areas . | . . . Known Exits Taken . | . . . Unknown Exits Taken 2 | 1 1 . Scrap Searched . | . . . Spaces Dug 7 | . . 7 Terrain Destroyed 149 | . 49 100 Melee . | . . . Projectile . | . . . AOE 149 | . 49 100 Terrain Rammed . | . . . Walls Destroyed . | . . . Machines Disabled . | . . . Actions | -11 -10 -9 --------- Run | Yrd Mat Mat Total 548 | 80 239 229 Wait . | . . . Move 432 | 67 194 171 Hop . | . . . Pick Up 27 | 5 15 7 Fast Attach 1 | . . 1 Attach 14 | 5 4 5 Detach 1 | . 1 . Swap 3 | . 3 . Drop 8 | . 2 6 Fire 51 | 3 20 28 Melee . | . . . Ram 1 | . . 1 Kick 10 | . . 10 Crush . | . . . Escape Stasis . | . . . Rewire . | . . . Trap . | . . . Miscellaneous . | . . . Route ------- -11/Scrapyard -10/Materials -9/Materials History --------- Turn | Location | Event 2 | -11/Scrapyard | Met Revision 17 59 | -11/Scrapyard | Discovered new exit (range 8) 83 | -11/Scrapyard | Entered Materials 237 | -10/Materials | Discovered new exit (range 10) 323 | -10/Materials | Build established: Mutant 422 | -10/Materials | Entered another Materials area 422 | -9/Materials | Evolved 2 slots: Power x1, Utility x1 647 | -9/Materials | Lost 3 parts (2n1w) 772 | -9/Materials | Core integrity fell below 50% 828 | -9/Materials | Core integrity fell below 20% 845 | -9/Materials | Lost 4 parts (1p2n1w) 851 | -9/Materials | Destroyed by G-34 Mercenary with Small Laser Last Messages --------------- K-01 Serf collects debris. U-05 Engineer builds a Wall. Imp. Aluminum Leg destroyed. Slammed into G-34 Mercenary. Critical hit (Burn: +37). K-01 Serf collects debris. U-05 Engineer builds a Wall. U-05 Engineer lays Concrete. Triggered Shock Trap. The floor emits a surge of raw power. System corrupted (+1). U-05 Engineer lays Concrete. Critical hit (Burn: +37). U-05 Engineer builds a Wall. U-05 Engineer lays Concrete. Acquired 11 matter. U-05 Engineer builds a Wall. Imp. Assault Rifle destroyed. Acquired 8 matter. U-05 Engineer lays Concrete. Map ----- +----------------------------------------------------+ | ######????# # ?????????????????????????????????? | | #????# # ?????????????????????????????????? | | ###### # ?????????????????????????????????? | | ## ##?????????????????????????????????? | | """ ## # ?????????????????????????????????? | | """ ## # ?????????????????????????????????? | | """ ## + ?????????????????????????????????? | | ## # ?????????????????????????????????? | | ## ##?????????????????????????????????? | | +########## ##?????????????????????????????????? | | ####### #?????????###?????????????????????? | | #????????? #????????????????????? | | T ???????? #????????????????????? | | ???????? ?????????????????????? | | ####### #????????? ????#????????????????? | | ##?????#######????????? #???a#????????????????? | | #?????????????????????? #### #????????????????? | | #?????????????????????# #????????????????? | | #?????????????????????# #????????????????? | | ####################### #????????????????? | | ^ #????????????????? | | #????????????????? | | #################### " ^""" # """ ???????????? | | ?????# # "g u """ # ??????????? | | ?????# """ # Y ##???????????????? | | ?????# || """ + @ #????????? | | ?????# || """ # #????????? | | ????## ##"Y"##############???????????? | | ????# ##"""## #???????????????? | | ????#####################???# ###???????????????? | | ??????????????????????????????##?????????????????? | | | | | | | | | | | | | | | | | | | | | | | | | | | | | | | | | | | | | | | +----------------------------------------------------+ Best States ------------- Heat Dissipation 28 Energy Generation 10 Energy Capacity 250 Matter Stores 300 Matter Capacity 300 Sight Range 16 Terrain Scan Density 10 Utility Shielding 33 Evasion (%) 55 Item Schematics ----------------- None Robot Schematics ------------------ None Fabricated ------------ Nothing Alien Tech Used ----------------- None Achievements -------------- It's Just You Oops Risk Taker Challenges ------------ None Game ------ Seed EncryptedPhysicsCompressor Manual? 0 Play Time 00:18:20 Cumulative 1.2 hours Start 2024.04.03 @ 19:39:37 End 2024.04.03 @ 19:56:13 Sessions 1 Manual Loads 0 Difficulty Rogue Special Mode None Game No. 2 Rogue 2 Adventurer 0 Explorer 0 Win Type - Total 0 Types 0/0/0/0/0/0/0/0/0 Lore% 1 Gallery% 2 Achievement% 3 Wizard Run 0 Options --------- Layout 1 ASCII 0 Keyboard 0 Movement Mouse Keybinds 0 Fullscreen 2 Font 24/Smallcaps Map View 50x35 Zoom Use 0% Tactical HUD 0 Map Filters NONE Filters NONE Steam 1 RUN: 7c4a1ac6-8613-415f-841c-1b70fa1aaf81